[Event "57th Biel Festival ATO 2024"]
[Site "Biel"]
[Date "2024.07.18"]
[Round "3.9"]
[White "Yu, Tianxiang Carlos"]
[Black "Szelag, Zuzanna"]
[Result "1-0"]
[ECO "C01"]
[WhiteElo "1769"]
[BlackElo "1897"]
[Annotator "NA"]
[PlyCount "161"]
[EventDate "2024.07.03"]
[EventType "swiss"]
[EventCountry "SUI"]
[SourceTitle "playchess.com"]
[Source "ChessBase"]
[SourceQuality "1"]
[TimeControl "40/5400+30:1800+30"]

1. e4 {[%emt 0:00:04]} e6 {[%emt 0:00:02]} 2. d4 {[%emt 0:00:03]} d5 {[%emt 0:00:05]} 3. Bd3 {[%emt 0:00:05]} Be7 {[%emt 0:03:35]} 4. Ne2 {[%emt 0:01:12]} Nf6 {[%emt 0:02:41]} 5. e5 {[%emt 0:00:10]} Nfd7 {[%emt 0:00:02]} 6. c3 {[%emt 0:01:26]} c5 {[%emt 0:00:29]} 7. a3 {[%emt 0:05:17]} Nc6 {[%emt 0:03:08]} 8. Be3 {[%emt 0:06:09]} Qb6 {[%emt 0:06:00]} 9. b4 {[%emt 0:03:14]} cxd4 {[%emt 0:00:09]} 10. cxd4 {[%emt 0:00:13]} f6 {[%emt 0:02:17]} 11. Nf4 {[%emt 0:15:58]} Nf8 {[%emt 0:08:24]} 12. Qh5+ {[%emt 0:04:01]} Kd8 {[%emt 0:00:05]} 13. Ne2 {[%emt 0:20:07]} Bd7 {[%emt 0:06:59]} 14. Nd2 {[%emt 0:01:06]} Rc8 {[%emt 0:17:12]} 15. Rc1 {[%emt 0:01:44]} a6 {[%emt 0:07:24]} 16. O-O {[%emt 0:04:15]} Be8 {[%emt 0:09:46]} 17. Qh3 {[%emt 0:00:45]} f5 {[%emt 0:02:20]} 18. f4 {[%emt 0:04:35]} h5 {[%emt 0:05:15]} 19. Nf3 {[%emt 0:04:57]} h4 {[%emt 0:03:54]} 20. Ng5 {[%emt 0:05:07]} Bxg5 {[%emt 0:01:43]} 21. fxg5 {[%emt 0:00:49]} Bh5 {[%emt 0:02:18]} 22. Bf2 {[%emt 0:14:58]} Ng6 {[%emt 0:01:29]} 23. Qe3 {[%emt 0:00:48]} Rf8 {[%emt 0:03:04]} 24. Nf4 {[%emt 0:00:38]} Nxf4 {[%emt 0:01:02]} 25. Qxf4 {[%emt 0:00:31]} h3 {[%emt 0:00:12]} 26. gxh3 {[%emt 0:00:54]} g6 {[%emt 0:00:17]} 27. Rc5 {[%emt 0:00:40]} Rc7 {[%emt 0:02:09]} 28. Rfc1 {[%emt 0:00:29]} Rff7 {[%emt 0:01:10]} 29. Kg2 {[%emt 0:00:28]} Rfd7 {[%emt 0:00:33]} 30. Qd2 {[%emt 0:01:24]} Rf7 {[%emt 0:02:02]} 31. Qf4 {[%emt 0:00:09]} Rfd7 {[%emt 0:00:03]} 32. Be3 {[%emt 0:00:31]} Rf7 {[%emt 0:02:22]} 33. Kg3 {[%emt 0:00:24]} Rh7 {[%emt 0:01:07]} 34. Bf1 {[%emt 0:00:57]} Rhf7 {[%emt 0:00:40]} 35. Kg2 {[%emt 0:00:02]} Rfd7 {[%emt 0:00:23]} 36. Qf2 {[%emt 0:00:30]} Rf7 {[%emt 0:00:41]} 37. Bf4 {[%emt 0:00:01]} Rh7 {[%emt 0:00:58]} 38. Qe3 {[%emt 0:00:36]} Rhf7 {[%emt 0:00:38]} 39. Qd2 {[%emt 0:00:29]} Rfd7 {[%emt 0:01:17]} 40. Kf2 {[%emt 0:00:13]} Rh7 {[%emt 0:01:23]} 41. R1c3 {[%emt 0:30:36]} Rhd7 {[%emt 0:32:07]} 42. Ke3 {[%emt 0:00:15]} Rf7 {[%emt 0:01:22]} 43. Qc1 {[%emt 0:01:58]} Rh7 {[%emt 0:00:00]} 44. Rc2 {[%emt 0:00:00]} Rhf7 {[%emt 0:00:00]} 45. Qb2 {[%emt 0:00:00]} Rfd7 {[%emt 0:00:00]} 46. Qa1 {[%emt 0:00:00]} Rh7 {[%emt 0:00:00]} 47. Qb2 {[%emt 0:00:00]} Rhd7 {[%emt 0:00:00]} 48. Rc1 {[%emt 0:00:00]} Rh7 {[%emt 0:00:00]} 49. Qc3 {[%emt 0:00:00]} Rhd7 {[%emt 0:00:00]} 50. Bd3 {[%emt 0:00:00]} Rh7 {[%emt 0:00:00]} 51. Bg3 {[%emt 0:00:00]} Rhf7 {[%emt 0:00:00]} 52. Kf4 {[%emt 0:00:00]} Rh7 {[%emt 0:00:00]} 53. Bf1 {[%emt 0:00:00]} Rhf7 {[%emt 0:00:00]} 54. Bf2 {[%emt 0:00:00]} Rh7 {[%emt 0:00:00]} 55. Qb2 {[%emt 0:00:00]} Rhf7 {[%emt 0:00:00]} 56. Qb1 {[%emt 0:00:00]} Rh7 {[%emt 0:00:00]} 57. R1c2 {[%emt 0:00:00]} Rhf7 {[%emt 0:00:00]} 58. Be3 {[%emt 0:00:00]} Rh7 {[%emt 0:00:00]} 59. Rb2 {[%emt 0:00:00]} Rhf7 {[%emt 0:00:00]} 60. a4 {[%emt 0:03:26]} Rh7 {[%emt 0:02:06]} 61. Rb3 {[%emt 0:00:18]} Kc8 {[%emt 0:01:08]} 62. a5 {[%emt 0:00:50]} Qa7 {[%emt 0:00:12]} 63. Qc2 {[%emt 0:01:19]} Kd7 {[%emt 0:02:06]} 64. Qc3 {[%emt 0:01:12]} Qa8 {[%emt 0:01:17]} 65. Qd3 {[%emt 0:03:29]} Qa7 {[%emt 0:01:25]} 66. Bc1 {[%emt 0:01:12]} Rh8 {[%emt 0:00:56]} 67. Bb2 {[%emt 0:00:31]} Rh7 {[%emt 0:00:54]} 68. Qd2 {[%emt 0:00:07]} Rh8 {[%emt 0:00:57]} 69. Ba3 {[%emt 0:00:10]} Rhc8 {[%emt 0:00:37]} 70. Rb1 {[%emt 0:01:24]} Rh8 {[%emt 0:00:22]} 71. Rb2 {[%emt 0:01:43]} Rhc8 {[%emt 0:00:13]} 72. Bg2 {[%emt 0:00:09]} Ne7 {[%emt 0:02:07]} 73. b5 {[%emt 0:01:16]} Qa8 {[%emt 0:02:10]} 74. Bf1 {[%emt 0:00:14]} axb5 {[%emt 0:00:43]} 75. Bxb5+ {[%emt 0:00:52]} Nc6 {[%emt 0:00:45]} 76. Qb4 {[%emt 0:00:32]} Re8 {[%emt 0:01:01]} 77. a6 {[%emt 0:00:41]} bxa6 {[%emt 0:00:30]} 78. Rxc6 {[%emt 0:00:12]} Rxc6 {[%emt 0:00:39]} 79. Qd6+ {[%emt 0:00:22]} Kc8 {[%emt 0:00:02]} 80. Bxc6 {[%emt 0:00:15]} Rd8 {[%emt 0:00:23]} 81. Bxa8 {[%emt 0:00:29]} 1-0

[Event "57th Biel Festival ATO 2024"]
[Site "Biel"]
[Date "2024.07.18"]
[Round "3.10"]
[White "Schmid, Nicola"]
[Black "Bangerter, Ena"]
[Result "1-0"]
[ECO "E00"]
[WhiteElo "1888"]
[BlackElo "1771"]
[Annotator "NA RC"]
[PlyCount "99"]
[EventDate "2024.07.03"]
[EventType "swiss"]
[EventCountry "SUI"]
[SourceTitle "playchess.com"]
[Source "ChessBase"]
[SourceQuality "1"]
[TimeControl "40/5400+30:1800+30"]

1. Nf3 {[%emt 0:01:02]} Nf6 {[%emt 0:00:06]} 2. c4 {[%emt 0:00:05]} e6 {[%emt 0:00:07]} 3. a3 {[%emt 0:00:41]} d5 {[%emt 0:00:38]} 4. d4 {[%emt 0:00:10]} Be7 {[%emt 0:00:15]} 5. Nc3 {[%emt 0:01:05]} O-O {[%emt 0:01:17]} 6. Bg5 {[%emt 0:00:27]} h6 {[%emt 0:02:53]} 7. Bh4 {[%emt 0:02:06]} b6 {[%emt 0:04:31]} 8. cxd5 {[%emt 0:04:56]} Nxd5 {[%emt 0:05:18]} 9. Bxe7 {[%emt 0:04:43]} Nxe7 {[%emt 0:03:38]} 10. Qc2 {[%emt 0:07:20]} Bb7 {[%emt 0:06:34]} 11. e4 {[%emt 0:02:21]} Nd7 {[%emt 0:11:26]} 12. Bc4 {[%emt 0:04:37]} c5 {[%emt 0:05:07]} 13. d5 {[%emt 0:09:54]} exd5 {[%emt 0:04:49]} 14. exd5 {[%emt 0:02:34]} Nf6 {[%emt 0:07:15]} 15. O-O-O {[%emt 0:01:15]} Qd6 {[%emt 0:10:18]} 16. Rd2 {[%emt 0:06:10]} a6 {[%emt 0:11:06]} 17. Re1 {[%emt 0:08:57]} Rad8 {[%emt 0:03:20]} 18. Ne4 {[%emt 0:12:44]} Nxe4 {[%emt 0:00:52]} 19. Qxe4 {[%emt 0:00:53]} Ng6 {[%emt 0:11:54]} 20. Ne5 {[%emt 0:07:28]} Rfe8 {[%emt 0:03:50]} 21. f4 {[%emt 0:00:26]} b5 {[%emt 0:02:38]} 22. Ba2 {[%emt 0:05:04]} Nxf4 {[%emt 0:01:30]} 23. Qxf4 {[%emt 0:06:26]} f6 {[%emt 0:00:23]} 24. Rde2 {[%emt 0:03:07]} fxe5 {[%emt 0:00:25]} 25. Rxe5 {[%emt 0:01:05]} Rxe5 {[%emt 0:00:16]} 26. Rxe5 {[%emt 0:00:54]} Rf8 {[%emt 0:00:53]} 27. Qe4 {[%emt 0:01:56]} c4 {[%emt 0:01:10]} 28. Bb1 {[%emt 0:01:49]} g6 {[%emt 0:01:05]} 29. Re6 {[%emt 0:01:55]} Qf4+ {[%emt 0:00:25]} 30. Qxf4 {[%emt 0:01:32]} Rxf4 {[%emt 0:00:04]} 31. Rxg6+ {[%emt 0:01:04]} Kf8 {[%emt 0:00:05]} 32. Bc2 {[%emt 0:00:48]} Bxd5 {[%emt 0:00:20]} 33. Rxa6 {[%emt 0:00:15]} Rf1+ {[%emt 0:00:58]} 34. Kd2 {[%emt 0:00:28]} Bxg2 {[%emt 0:01:07]} 35. Rxh6 {[%emt 0:00:40]} Rf2+ {[%emt 0:00:11]} 36. Kc3 {[%emt 0:00:19]} Kg7 {[%emt 0:00:44]} 37. Rg6+ {[%emt 0:00:19]} Kf7 {[%emt 0:00:14]} 38. Rb6 {[%emt 0:00:17]} Bf1 {[%emt 0:00:24]} 39. Rxb5 {[%emt 0:00:41]} Rxh2 {[%emt 0:00:08]} 40. Rf5+ {[%emt 0:00:38]} Ke6 {[%emt 0:00:02]} 41. Rxf1 {[%emt 0:30:21]} Kd5 {[%emt 0:30:12]} 42. Rf5+ {[%emt 0:00:21]} Kd6 {[%emt 0:00:26]} 43. a4 {[%emt 0:00:24]} Kc6 {[%emt 0:00:07]} 44. a5 {[%emt 0:00:11]} Kb7 {[%emt 0:00:10]} 45. Rf6 {[%emt 0:01:07]} Ka7 {[%emt 0:00:04]} 46. Be4 {[%emt 0:00:58]} Rh5 {[%emt 0:01:12]} 47. Kb4 {[%emt 0:00:30]} Rh4 {[%emt 0:00:35]} 48. Bd5 {[%emt 0:00:27]} Rh8 {[%emt 0:01:12]} 49. Rf7+ {[%emt 0:00:17]} Ka6 {[%emt 0:00:44]} 50. Bxc4# {[%emt 0:00:26]} 1-0

[Event "57th Biel Festival ATO 2024"]
[Site "Biel"]
[Date "2024.07.18"]
[Round "3.12"]
[White "Nasybullina, Alfia"]
[Black "Linder, Ernst"]
[Result "1-0"]
[ECO "D06"]
[WhiteElo "1997"]
[BlackElo "1765"]
[Annotator "RC"]
[PlyCount "50"]
[EventDate "2024.07.03"]
[EventType "swiss"]
[EventCountry "SUI"]
[SourceTitle "playchess.com"]
[Source "ChessBase"]
[SourceQuality "1"]
[TimeControl "40/5400+30:1800+30"]

1. d4 {[%emt 0:00:05]} d5 {[%emt 0:00:22]} 2. c4 {[%emt 0:00:05]} Nf6 {[%emt 0:00:42]} 3. cxd5 {[%emt 0:00:19]} Qxd5 {[%emt 0:01:41]} 4. Nc3 {[%emt 0:00:09]} Qd8 {[%emt 0:00:50]} 5. e4 {[%emt 0:00:40]} e6 {[%emt 0:00:32]} 6. Nf3 {[%emt 0:00:55]} Be7 {[%emt 0:00:35]} 7. Bd3 {[%emt 0:02:22]} c6 {[%emt 0:00:56]} 8. Bg5 {[%emt 0:00:24]} Nbd7 {[%emt 0:01:00]} 9. Qd2 {[%emt 0:02:42]} O-O {[%emt 0:02:39]} 10. O-O-O {[%emt 0:01:22]} b5 {[%emt 0:03:34]} 11. e5 {[%emt 0:02:04]} b4 {[%emt 0:04:57]} 12. Ne4 {[%emt 0:13:05]} Nd5 {[%emt 0:04:57]} 13. Nd6 {[%emt 0:02:08]} a5 {[%emt 0:03:31]} 14. Bxe7 {[%emt 0:00:32]} Qxe7 {[%emt 0:01:26]} 15. Rhe1 {[%emt 0:08:17]} Ba6 {[%emt 0:09:23]} 16. Re4 {[%emt 0:02:56]} Bxd3 {[%emt 0:01:21]} 17. Qxd3 {[%emt 0:00:07]} c5 {[%emt 0:02:46]} 18. Rh4 {[%emt 0:00:24]} h6 {[%emt 0:05:23]} 19. g4 {[%emt 0:02:52]} cxd4 {[%emt 0:09:14]} 20. Qxd4 {[%emt 0:00:24]} f6 {[%emt 0:02:12]} 21. Nf5 {[%emt 0:11:05]} Qc5+ {[%emt 0:03:04]} 22. Qxc5 {[%emt 0:01:34]} Nxc5 {[%emt 0:00:17]} 23. exf6 {[%emt 0:01:02]} Rxf6 {[%emt 0:01:27]} 24. Ne5 {[%emt 0:03:22]} Rc8 {[%emt 0:02:46]} 25. Kb1 {[%emt 0:06:55]} Nc3+ {[%emt 0:13:59]} 1-0

[Event "57th Biel Festival ATO 2024"]
[Site "Biel"]
[Date "2024.07.18"]
[Round "3.13"]
[White "Schaer, Bryan"]
[Black "Dreke, Frank"]
[Result "0-1"]
[ECO "B03"]
[WhiteElo "1803"]
[BlackElo "1915"]
[Annotator "RC"]
[PlyCount "134"]
[EventDate "2024.07.03"]
[EventType "swiss"]
[EventCountry "SUI"]
[SourceTitle "playchess.com"]
[Source "ChessBase"]
[SourceQuality "1"]
[TimeControl "40/5400+30:1800+30"]

1. e4 {[%emt 0:00:06]} Nf6 {[%emt 0:00:30]} 2. e5 {[%emt 0:00:07]} Nd5 {[%emt 0:00:00]} 3. d4 {[%emt 0:00:05]} d6 {[%emt 0:00:00]} 4. c4 {[%emt 0:00:50]} Nb6 {[%emt 0:00:12]} 5. f4 {[%emt 0:00:19]} dxe5 {[%emt 0:00:07]} 6. fxe5 {[%emt 0:00:07]} c5 {[%emt 0:00:30]} 7. d5 {[%emt 0:01:32]} g6 {[%emt 0:00:00]} 8. Be3 {[%emt 0:06:58]} Qc7 {[%emt 0:23:54]} 9. Nf3 {[%emt 0:09:23]} Bg4 {[%emt 0:02:03]} 10. Nbd2 {[%emt 0:02:12]} N8d7 {[%emt 0:03:47]} 11. Be2 {[%emt 0:05:31]} Bg7 {[%emt 0:05:57]} 12. O-O {[%emt 0:16:38]} O-O {[%emt 0:04:55]} 13. e6 {[%emt 0:08:52]} fxe6 {[%emt 0:05:37]} 14. Ng5 {[%emt 0:06:11]} Qe5 {[%emt 0:02:19]} 15. Rxf8+ {[%emt 0:16:33]} Rxf8 {[%emt 0:00:41]} 16. Nf1 {[%emt 0:00:14]} Rxf1+ {[%emt 0:01:03]} 17. Kxf1 {[%emt 0:00:50]} Bxe2+ {[%emt 0:13:00]} 18. Qxe2 {[%emt 0:00:18]} exd5 {[%emt 0:00:55]} 19. Rc1 {[%emt 0:09:31]} Bh6 {[%emt 0:14:13]} 20. h4 {[%emt 0:03:29]} dxc4 {[%emt 0:01:36]} 21. Qf3 {[%emt 0:01:42]} Qf5 {[%emt 0:03:53]} 22. Ke2 {[%emt 0:04:15]} Qd3+ {[%emt 0:05:34]} 23. Kf2 {[%emt 0:00:58]} Bxg5 {[%emt 0:00:39]} 24. Bxg5 {[%emt 0:00:18]} Qxf3+ {[%emt 0:03:27]} 25. Kxf3 {[%emt 0:00:09]} Kf7 {[%emt 0:00:30]} 26. Re1 {[%emt 0:00:11]} e5 {[%emt 0:01:11]} 27. Rf1 {[%emt 0:00:23]} Ke6 {[%emt 0:00:24]} 28. Ke4 {[%emt 0:00:13]} Nc8 {[%emt 0:02:20]} 29. g4 {[%emt 0:03:14]} b5 {[%emt 0:00:45]} 30. a3 {[%emt 0:01:04]} Nd6+ {[%emt 0:01:18]} 31. Ke3 {[%emt 0:00:08]} Nf7 {[%emt 0:00:40]} 32. Rd1 {[%emt 0:00:37]} h6 {[%emt 0:00:31]} 33. h5 {[%emt 0:02:08]} Nxg5 {[%emt 0:01:09]} 34. hxg6 {[%emt 0:00:17]} Nf6 {[%emt 0:00:48]} 35. Rf1 {[%emt 0:01:19]} Nd5+ {[%emt 0:01:00]} 36. Kd2 {[%emt 0:01:02]} Nf4 {[%emt 0:00:12]} 37. Rh1 {[%emt 0:00:26]} Nxg6 {[%emt 0:00:43]} 38. Rxh6 {[%emt 0:00:08]} Kf6 {[%emt 0:00:30]} 39. Ke3 {[%emt 0:00:26]} a6 {[%emt 0:01:34]} 40. Rh1 {[%emt 0:00:30]} Kf7 {[%emt 0:00:56]} 41. Rh5 {[%emt 0:30:36]} Kf6 {[%emt 0:30:51]} 42. Rh1 {[%emt 0:00:10]} Ne6 {[%emt 0:00:00]} 43. Rh7 {[%emt 0:00:00]} Ngf4 {[%emt 0:00:00]} 44. Ra7 {[%emt 0:00:00]} Nd5+ {[%emt 0:00:00]} 45. Kd2 {[%emt 0:00:00]} Nec7 {[%emt 0:00:00]} 46. Kc2 {[%emt 0:00:00]} Kg5 {[%emt 0:00:00]} 47. Rb7 {[%emt 0:00:00]} Kxg4 {[%emt 0:00:00]} 48. Rb8 {[%emt 0:00:00]} Kf4 {[%emt 0:00:00]} 49. Rf8+ {[%emt 0:00:00]} Ke4 {[%emt 0:00:00]} 50. Rf7 {[%emt 0:00:00]} a5 {[%emt 0:00:00]} 51. Rh7 {[%emt 0:00:00]} a4 {[%emt 0:00:00]} 52. Kd2 {[%emt 0:00:00]} b4 {[%emt 0:00:00]} 53. Rh4+ {[%emt 0:00:00]} Nf4 {[%emt 0:00:00]} 54. Kc2 {[%emt 0:00:00]} Nb5 {[%emt 0:00:00]} 55. Kc1 {[%emt 0:00:00]} b3 {[%emt 0:00:00]} 56. Kd2 {[%emt 0:00:00]} c3+ {[%emt 0:00:00]} 57. Kc1 {[%emt 0:00:00]} cxb2+ {[%emt 0:00:00]} 58. Kxb2 {[%emt 0:00:00]} c4 {[%emt 0:00:00]} 59. Rh2 {[%emt 0:00:00]} c3+ {[%emt 0:00:00]} 60. Ka1 {[%emt 0:00:00]} c2 {[%emt 0:00:00]} 61. Rh1 {[%emt 0:00:00]} Ne2 {[%emt 0:00:00]} 62. Rh4+ {[%emt 0:00:26]} Kd3 {[%emt 0:00:00]} 63. Rh3+ {[%emt 0:00:37]} Kd2 {[%emt 0:00:00]} 64. Rh1 {[%emt 0:01:02]} c1=Q+ {[%emt 0:00:00]} 65. Rxc1 {[%emt 0:00:12]} Nxc1 {[%emt 0:00:00]} 66. Kb2 {[%emt 0:00:21]} Nd3+ {[%emt 0:00:00]} 67. Ka1 {[%emt 0:00:14]} b2+ {[%emt 0:00:00]} 0-1

[Event "57th Biel Festival ATO 2024"]
[Site "Biel"]
[Date "2024.07.18"]
[Round "3.14"]
[White "Kessler, Meinrad"]
[Black "Lang, Jochen"]
[Result "1-0"]
[ECO "B15"]
[WhiteElo "1874"]
[BlackElo "1755"]
[Annotator "NA"]
[PlyCount "67"]
[EventDate "2024.07.03"]
[EventType "swiss"]
[EventCountry "SUI"]
[SourceTitle "playchess.com"]
[Source "ChessBase"]
[SourceQuality "1"]
[TimeControl "40/5400+30:1800+30"]

1. e4 {[%emt 0:00:04]} c6 {[%emt 0:00:18]} 2. d4 {[%emt 0:00:10]} d5 {[%emt 0:00:13]} 3. Nc3 {[%emt 0:00:13]} dxe4 {[%emt 0:00:18]} 4. Nxe4 {[%emt 0:00:09]} Nf6 {[%emt 0:00:22]} 5. Nxf6+ {[%emt 0:00:38]} exf6 {[%emt 0:00:19]} 6. c3 {[%emt 0:00:42]} Bd6 {[%emt 0:00:16]} 7. Bd3 {[%emt 0:00:45]} O-O {[%emt 0:00:46]} 8. Qc2 {[%emt 0:00:38]} Re8+ {[%emt 0:01:07]} 9. Ne2 {[%emt 0:00:13]} g6 {[%emt 0:05:27]} 10. O-O {[%emt 0:02:43]} Nd7 {[%emt 0:03:47]} 11. Bd2 {[%emt 0:19:34]} Nf8 {[%emt 0:03:10]} 12. c4 {[%emt 0:06:11]} Bc7 {[%emt 0:10:31]} 13. Rad1 {[%emt 0:04:01]} Bg4 {[%emt 0:07:01]} 14. Be3 {[%emt 0:17:07]} Bxe2 {[%emt 0:04:04]} 15. Bxe2 {[%emt 0:01:43]} Rc8 {[%emt 0:12:20]} 16. Bf3 {[%emt 0:04:58]} Bb8 {[%emt 0:02:42]} 17. d5 {[%emt 0:05:16]} cxd5 {[%emt 0:02:40]} 18. Bxd5 {[%emt 0:01:17]} Qc7 {[%emt 0:00:33]} 19. g3 {[%emt 0:00:11]} Ne6 {[%emt 0:03:21]} 20. f4 {[%emt 0:03:16]} b5 {[%emt 0:09:57]} 21. b3 {[%emt 0:01:03]} a6 {[%emt 0:00:21]} 22. Qg2 {[%emt 0:01:31]} Ba7 {[%emt 0:00:53]} 23. Bf2 {[%emt 0:05:23]} Ng7 {[%emt 0:02:55]} 24. Rfe1 {[%emt 0:03:18]} bxc4 {[%emt 0:03:11]} 25. Bxc4 {[%emt 0:00:48]} a5 {[%emt 0:01:30]} 26. Kf1 {[%emt 0:01:46]} Bxf2 {[%emt 0:01:17]} 27. Qxf2 {[%emt 0:00:10]} Qc6 {[%emt 0:02:54]} 28. Rxe8+ {[%emt 0:03:31]} Rxe8 {[%emt 0:02:24]} 29. Rd5 {[%emt 0:00:53]} Nf5 {[%emt 0:03:39]} 30. Kg1 {[%emt 0:03:54]} Ne3 {[%emt 0:03:30]} 31. Rd4 {[%emt 0:00:57]} a4 {[%emt 0:02:45]} 32. Qd2 {[%emt 0:02:31]} Qc5 {[%emt 0:03:33]} 33. Qc3 {[%emt 0:02:47]} Nf5 {[%emt 0:02:17]} 34. Bxf7+ {[%emt 0:00:13]} 1-0

[Event "57th Biel Festival ATO 2024"]
[Site "Biel"]
[Date "2024.07.18"]
[Round "3.15"]
[White "Cardoso Rodrigues, Michael"]
[Black "Buntschu, Kurt"]
[Result "1/2-1/2"]
[ECO "B21"]
[WhiteElo "1796"]
[BlackElo "1868"]
[Annotator "NA RC"]
[PlyCount "59"]
[EventDate "2024.07.03"]
[EventType "swiss"]
[EventCountry "SUI"]
[SourceTitle "playchess.com"]
[Source "ChessBase"]
[SourceQuality "1"]
[TimeControl "40/5400+30:1800+30"]

1. e4 {[%emt 0:00:05]} c5 {[%emt 0:00:19]} 2. d4 {[%emt 0:00:11]} cxd4 {[%emt 0:00:25]} 3. c3 {[%emt 0:00:30]} dxc3 {[%emt 0:00:36]} 4. Nxc3 {[%emt 0:00:01]} Nc6 {[%emt 0:00:05]} 5. Nf3 {[%emt 0:00:00]} d6 {[%emt 0:00:16]} 6. Bc4 {[%emt 0:00:00]} e6 {[%emt 0:00:09]} 7. O-O {[%emt 0:00:00]} Be7 {[%emt 0:00:12]} 8. Qe2 {[%emt 0:00:16]} Nf6 {[%emt 0:01:04]} 9. Rd1 {[%emt 0:00:07]} e5 {[%emt 0:00:25]} 10. Ng5 {[%emt 0:08:33]} O-O {[%emt 0:19:20]} 11. Bxf7+ {[%emt 0:04:33]} Rxf7 {[%emt 0:05:16]} 12. Qc4 {[%emt 0:00:40]} Qf8 {[%emt 0:10:51]} 13. Nb5 {[%emt 0:05:02]} h6 {[%emt 0:09:47]} 14. Nxf7 {[%emt 0:05:42]} Qxf7 {[%emt 0:00:24]} 15. Qxf7+ {[%emt 0:04:19]} Kxf7 {[%emt 0:00:07]} 16. f3 {[%emt 0:01:54]} Be6 {[%emt 0:03:37]} 17. Be3 {[%emt 0:09:17]} d5 {[%emt 0:05:59]} 18. Nc7 {[%emt 0:01:28]} Rd8 {[%emt 0:00:22]} 19. exd5 {[%emt 0:04:51]} Nxd5 {[%emt 0:00:34]} 20. Nxe6 {[%emt 0:00:41]} Kxe6 {[%emt 0:00:22]} 21. Bf2 {[%emt 0:00:43]} Nf4 {[%emt 0:12:35]} 22. Rxd8 {[%emt 0:07:38]} Bxd8 {[%emt 0:00:15]} 23. Rd1 {[%emt 0:01:45]} Ne2+ {[%emt 0:06:42]} 24. Kf1 {[%emt 0:00:52]} Ned4 {[%emt 0:00:04]} 25. f4 {[%emt 0:03:21]} Bf6 {[%emt 0:03:39]} 26. Re1 {[%emt 0:04:29]} Kd5 {[%emt 0:00:59]} 27. fxe5 {[%emt 0:03:09]} Bxe5 {[%emt 0:02:21]} 28. g3 {[%emt 0:06:50]} Nb4 {[%emt 0:06:06]} 29. Rd1 {[%emt 0:04:51]} a6 {[%emt 0:05:09]} 30. a3 {[%emt 0:02:20]} 1/2-1/2

[Event "57th Biel Festival ATO 2024"]
[Site "Biel"]
[Date "2024.07.18"]
[Round "3.16"]
[White "Keymer, Cecilia"]
[Black "Jordan, Christina"]
[Result "0-1"]
[ECO "D13"]
[WhiteElo "1865"]
[BlackElo "1749"]
[Annotator "NA RC"]
[PlyCount "34"]
[EventDate "2024.07.03"]
[EventType "swiss"]
[EventCountry "SUI"]
[SourceTitle "playchess.com"]
[Source "ChessBase"]
[SourceQuality "1"]
[TimeControl "40/5400+30:1800+30"]

1. d4 {[%emt 0:00:04]} d5 {[%emt 0:00:06]} 2. c4 {[%emt 0:00:06]} c6 {[%emt 0:00:03]} 3. Nf3 {[%emt 0:00:20]} Nf6 {[%emt 0:00:09]} 4. e3 {[%emt 0:00:35]} Bf5 {[%emt 0:01:20]} 5. cxd5 {[%emt 0:02:24]} cxd5 {[%emt 0:01:02]} 6. Nc3 {[%emt 0:00:28]} Nc6 {[%emt 0:01:41]} 7. Ne5 {[%emt 0:01:39]} a6 {[%emt 0:07:35]} 8. Be2 {[%emt 0:03:51]} e6 {[%emt 0:02:57]} 9. g4 {[%emt 0:08:17]} Bg6 {[%emt 0:03:50]} 10. h4 {[%emt 0:02:25]} h6 {[%emt 0:01:36]} 11. Nxg6 {[%emt 0:01:58]} fxg6 {[%emt 0:00:10]} 12. Bd3 {[%emt 0:04:22]} Bd6 {[%emt 0:05:32]} 13. Bxg6+ {[%emt 0:01:49]} Kd7 {[%emt 0:01:45]} 14. f4 {[%emt 0:04:42]} Ne7 {[%emt 0:07:36]} 15. Bd3 {[%emt 0:04:59]} Qf8 {[%emt 0:04:14]} 16. e4 {[%emt 0:13:00]} g6 {[%emt 0:08:27]} 17. O-O {[%emt 0:20:46]} Rg8 {[%emt 0:19:23]} 0-1

[Event "57th Biel Festival ATO 2024"]
[Site "Biel"]
[Date "2024.07.18"]
[Round "3.17"]
[White "Coletta, Julien"]
[Black "Bracher, Juerg"]
[Result "0-1"]
[ECO "B24"]
[WhiteElo "1778"]
[BlackElo "1864"]
[Annotator "NA"]
[PlyCount "62"]
[EventDate "2024.07.03"]
[EventType "swiss"]
[EventCountry "SUI"]
[SourceTitle "playchess.com"]
[Source "ChessBase"]
[SourceQuality "1"]
[TimeControl "40/5400+30:1800+30"]

1. e4 {[%emt 0:00:03]} c5 {[%emt 0:00:12]} 2. Nc3 {[%emt 0:00:41]} Nc6 {[%emt 0:00:20]} 3. g3 {[%emt 0:00:13]} e6 {[%emt 0:00:31]} 4. Bg2 {[%emt 0:00:16]} a6 {[%emt 0:01:08]} 5. f4 {[%emt 0:00:53]} Qc7 {[%emt 0:00:48]} 6. Nf3 {[%emt 0:01:39]} d6 {[%emt 0:01:50]} 7. d3 {[%emt 0:02:44]} Nf6 {[%emt 0:00:14]} 8. O-O {[%emt 0:03:26]} Be7 {[%emt 0:01:42]} 9. h3 {[%emt 0:04:14]} Nd4 {[%emt 0:13:15]} 10. g4 {[%emt 0:10:14]} h6 {[%emt 0:05:11]} 11. Nxd4 {[%emt 0:12:02]} cxd4 {[%emt 0:00:12]} 12. Ne2 {[%emt 0:00:06]} Qb6 {[%emt 0:07:57]} 13. Kh2 {[%emt 0:09:12]} e5 {[%emt 0:12:34]} 14. f5 {[%emt 0:00:47]} Bd7 {[%emt 0:00:43]} 15. c3 {[%emt 0:03:55]} dxc3 {[%emt 0:12:11]} 16. bxc3 {[%emt 0:01:04]} Bc6 {[%emt 0:00:27]} 17. Ng3 {[%emt 0:10:56]} Qc7 {[%emt 0:10:31]} 18. d4 {[%emt 0:10:48]} Bb5 {[%emt 0:07:00]} 19. Rf3 {[%emt 0:00:20]} Rc8 {[%emt 0:01:07]} 20. Re3 {[%emt 0:05:09]} Qa5 {[%emt 0:02:26]} 21. Bb2 {[%emt 0:04:21]} Bc4 {[%emt 0:01:15]} 22. Ne2 {[%emt 0:02:42]} Nd7 {[%emt 0:01:05]} 23. Nc1 {[%emt 0:04:47]} Bg5 {[%emt 0:01:26]} 24. Nb3 {[%emt 0:00:45]} Qb5 {[%emt 0:04:02]} 25. Re1 {[%emt 0:01:03]} Bf4+ {[%emt 0:00:27]} 26. Kh1 {[%emt 0:00:00]} Nb6 {[%emt 0:04:56]} 27. Bc1 {[%emt 0:04:23]} Bg3 {[%emt 0:03:56]} 28. Re3 {[%emt 0:00:08]} Bf2 {[%emt 0:00:20]} 29. Rf3 {[%emt 0:02:46]} Be2 {[%emt 0:00:19]} 30. Qd2 {[%emt 0:00:00]} Bxf3 {[%emt 0:00:18]} 31. Bxf3 {[%emt 0:00:00]} Qf1+ {[%emt 0:00:33]} 0-1